bitfinex-derivatives/quotes_BTCF0:USTF0_20251120
["timestamp","ask_amount","ask_price","bid_price","bid_amount"]
[1763669024530,0.01853479,86797.0,86796.0,0.24721803]
[1763669025128,0.13078479,86797.0,86796.0,0.24721803]
[1763669025329,0.01853479,86797.0,86796.0,0.24721803]
[1763669029234,4.79e-06,86797.0,86796.0,0.24721803]
[1763669029431,0.11216,86818.0,86817.0,0.24502]
[1763669029432,0.3319159,86818.0,86817.0,0.24502]
[1763669029627,0.4615759,86818.0,86817.0,0.24721803]
[1763669029933,0.4615759,86818.0,86801.0,0.07565]
[1763669030130,0.4615759,86818.0,86790.0,0.07565]
[1763669030131,0.25607,86791.0,86790.0,0.20382]
[1763669030338,0.25607,86791.0,86790.0,0.20601803]
[1763669030629,0.25607,86791.0,86782.0,0.00017282]
[1763669030630,0.12641,86783.0,86782.0,0.12834282]
[1763669030832,0.25607,86783.0,86782.0,0.13054085]
[1763669031026,0.25119595,86792.0,86782.0,0.24739085]
[1763669032136,0.37760595,86792.0,86791.0,0.24502]
[1763669032436,0.33896835,86797.0,86796.0,0.12817]
[1763669032626,0.33896835,86797.0,86796.0,0.13036803]
[1763669033021,0.00017282,86799.0,86798.0,0.24502]
[1763669033232,0.00017282,86799.0,86798.0,0.24721803]
[1763669034323,0.12658282,86799.0,86798.0,0.24721803]
[1763669034525,0.25624282,86799.0,86798.0,0.24721803]
[1763669034732,0.25624282,86799.0,86798.0,0.00219803]
[1763669035832,0.00017282,86799.0,86798.0,0.24721803]
[1763669036235,0.12658282,86799.0,86798.0,0.24721803]
[1763669036838,0.25624282,86799.0,86798.0,0.00219803]
[1763669037136,0.25624282,86799.0,86798.0,0.13036803]
[1763669037739,0.00017282,86799.0,86798.0,0.24721803]
[1763669038732,0.25624282,86799.0,86798.0,0.00219803]
[1763669039334,0.25624282,86799.0,86790.0,0.07565]
[1763669039529,0.25607,86792.0,86791.0,0.00219803]
[1763669039731,0.25624282,86799.0,86791.0,0.00219803]
[1763669039932,0.25624282,86799.0,86798.0,0.24502]
[1763669040132,0.25624282,86799.0,86798.0,0.24721803]
[1763669040329,0.25607,86783.0,86782.0,0.00017282]
[1763669040533,0.25607,86783.0,86782.0,0.12817]
[1763669040833,0.11216,86791.0,86782.0,0.24721803]
[1763669041034,0.19505835,86791.0,86782.0,0.24721803]
[1763669041228,0.25607,86783.0,86772.0,0.07565]
[1763669041430,0.46065448,86791.0,86784.0,0.07565]
[1763669041631,0.46065448,86791.0,86790.0,0.12817]
[1763669041945,0.46065448,86791.0,86790.0,0.00219803]
[1763669042334,0.46065448,86791.0,86790.0,0.13036803]
[1763669042535,0.20458448,86791.0,86790.0,0.24721803]
[1763669043443,0.20458448,86791.0,86790.0,0.25609803]
[1763669044542,0.06209891,86794.0,86793.0,0.24078]
[1763669044741,0.06209891,86794.0,86793.0,0.24297803]
[1763669045041,0.22604,86794.0,86793.0,0.00219803]
[1763669045632,0.35270176,86810.0,86772.0,0.07565]
[1763669045633,0.22604,86785.0,86772.0,0.07565]
[1763669045831,0.06213818,86776.0,86775.0,0.24078]
[1763669046039,0.06213818,86776.0,86775.0,0.24297803]
[1763669046351,0.08285091,86787.0,86775.0,0.24297803]
[1763669046740,0.19587091,86786.0,86785.0,0.11505]
[1763669046940,0.19587091,86786.0,86785.0,0.11724803]
[1763669047145,0.09095449,86791.0,86790.0,0.24078]
[1763669047338,0.35270176,86800.0,86790.0,0.24297803]
[1763669047538,0.25119595,86800.0,86790.0,0.24297803]
[1763669047733,0.00998203,86830.0,86790.0,0.24297803]
[1763669047734,0.0829019,86792.0,86791.0,0.24078]
[1763669047938,0.0829019,86796.0,86794.0,0.24078]
[1763669048142,0.0829019,86796.0,86795.0,0.24297803]
[1763669048848,0.25119595,86810.0,86798.0,0.24078]
[1763669048849,0.0829019,86801.0,86798.0,0.24078]
[1763669049038,0.0829019,86801.0,86798.0,0.24297803]
[1763669049440,0.0829019,86802.0,86798.0,0.24297803]
[1763669049742,0.22621282,86799.0,86798.0,0.11724803]
[1763669049943,0.22621282,86799.0,86786.0,0.00017282]
[1763669050145,0.11302,86788.0,86787.0,0.00219803]
[1763669050344,0.11302,86788.0,86787.0,0.11724803]
[1763669050642,0.22604,86788.0,86787.0,0.00219803]
[1763669050848,0.22604,86788.0,86786.0,0.00017282]
[1763669051038,0.22604,86787.0,86786.0,0.00017282]
[1763669051234,0.22604,86787.0,86760.0,0.07565]
[1763669051441,0.08294558,86769.0,86768.0,0.11505]
[1763669051639,0.25119595,86778.0,86768.0,0.11724803]
[1763669052336,0.35270176,86780.0,86779.0,0.11505]
[1763669052545,0.10150581,86780.0,86779.0,0.24297803]
[1763669052749,0.32754581,86780.0,86779.0,0.00219803]
[1763669053342,0.22604,86780.0,86779.0,0.00219803]
[1763669054344,0.22604,86765.0,86764.0,0.11522282]
[1763669054544,0.08287277,86770.0,86769.0,0.24078]
[1763669054748,0.30891277,86770.0,86769.0,0.00219803]
[1763669054947,0.22604,86770.0,86764.0,0.00017282]
[1763669055148,0.22604,86765.0,86764.0,0.00017282]
[1763669055346,0.3089166,86765.0,86764.0,0.00017282]
[1763669055550,0.22604,86765.0,86764.0,0.00017282]
[1763669055745,0.10150581,86771.0,86764.0,0.24315085]
[1763669055945,0.10150581,86772.0,86770.0,0.24078]
[1763669056151,0.25119595,86779.0,86764.0,0.00237085]
[1763669056152,0.10150581,86778.0,86772.0,0.06913]
[1763669056344,0.10150581,86778.0,86764.0,0.00017282]
[1763669056345,0.22604,86774.0,86764.0,0.00017282]
[1763669056551,0.30886853,86765.0,86764.0,0.00017282]
[1763669056858,0.22604,86765.0,86764.0,0.00017282]
[1763669057155,0.25119595,86779.0,86771.0,0.24078]
[1763669057156,0.10150581,86772.0,86771.0,0.24078]
[1763669057352,0.10150581,86778.0,86771.0,0.24297803]
[1763669057853,0.35270176,86779.0,86772.0,0.06913]
[1763669058054,0.25119595,86779.0,86773.0,0.00219803]
[1763669058863,0.11302,86774.0,86773.0,0.11724803]
[1763669059156,0.22604,86774.0,86773.0,0.00219803]
[1763669059357,0.10150581,86779.0,86778.0,0.24078]
[1763669059559,0.00017282,86782.0,86781.0,0.24078]
[1763669059748,0.00017282,86782.0,86781.0,0.24297803]
[1763669060258,0.0622614,86782.0,86781.0,0.24297803]
[1763669060758,0.0632614,86782.0,86781.0,0.24297803]
[1763669061351,0.0632614,86782.0,86781.0,0.25451623]
[1763669061547,0.00117282,86782.0,86781.0,0.25451623]
[1763669062060,0.00117282,86782.0,86781.0,0.24297803]
[1763669063247,0.00117282,86782.0,86781.0,0.25451623]
[1763669063750,0.00117282,86782.0,86781.0,0.24297803]
[1763669065550,0.28930105,86782.0,86781.0,0.11505]
[1763669065754,0.22721282,86782.0,86781.0,0.24297803]
[1763669065956,0.00117282,86782.0,86781.0,0.24297803]
[1763669066760,0.11419282,86782.0,86781.0,0.24297803]
[1763669067562,0.22721282,86782.0,86781.0,0.00219803]
[1763669068047,0.22721282,86782.0,86772.0,0.06913]
[1763669068252,0.06212829,86773.0,86772.0,0.18637803]
[1763669068447,0.06212829,86773.0,86772.0,0.31210803]
[1763669069259,0.22604,86765.0,86764.0,0.00017282]
[1763669069460,0.22604,86765.0,86737.0,0.0115441]
[1763669069758,0.36421595,86758.0,86757.0,0.24078]
[1763669070067,0.22604,86758.0,86725.0,0.00014442]
[1763669070262,0.33406871,86759.0,86749.0,0.22830803]
[1763669070559,0.25119595,86759.0,86749.0,0.22830803]
[1763669070864,0.23274892,86759.0,86749.0,0.22830803]
[1763669071063,0.14987616,86759.0,86749.0,0.22830803]
[1763669071659,0.14987616,86760.0,86759.0,0.10844]
[1763669071960,0.16036,86760.0,86759.0,0.11063803]
[1763669072360,0.16036,86760.0,86759.0,0.22169803]
[1763669073259,0.25120224,86760.0,86759.0,0.00219803]
[1763669073655,0.25120224,86760.0,86748.0,0.06913]
[1763669073856,0.06208435,86752.0,86751.0,0.20754]
[1763669074055,0.06208435,86753.0,86752.0,0.20754]
[1763669074251,0.14002435,86753.0,86752.0,0.20973803]
[1763669074461,0.15588,86749.0,86716.0,0.0115468]
[1763669074657,0.14987616,86746.0,86745.0,0.20754]
[1763669074877,0.06208725,86747.0,86746.0,0.20754]
[1763669075065,0.14002725,86747.0,86746.0,0.20973803]
[1763669075269,0.15588,86747.0,86746.0,0.20973803]
[1763669075768,0.07794,86747.0,86746.0,0.20973803]
[1763669076158,0.08287276,86759.0,86758.0,0.20754]
[1763669076361,0.06206009,86760.0,86759.0,0.20754]
[1763669076565,0.06223291,86763.0,86761.0,0.20754]
[1763669076863,0.00017282,86763.0,86762.0,0.20973803]
[1763669077057,0.04154113,86763.0,86762.0,0.20973803]
[1763669078056,0.00017282,86763.0,86762.0,0.20973803]
[1763669078460,0.13417201,86763.0,86762.0,0.20973803]
[1763669078656,0.00017282,86763.0,86762.0,0.20973803]
[1763669079073,0.09041177,86763.0,86762.0,0.20973803]
[1763669079267,0.07811282,86763.0,86762.0,0.20973803]
[1763669079568,0.00017282,86763.0,86762.0,0.20973803]
[1763669079963,0.03111111,86770.0,86769.0,0.20754]
[1763669080161,0.03111111,86770.0,86769.0,0.20973803]
[1763669080371,0.09339754,86770.0,86769.0,0.20973803]
[1763669080669,0.11216,86779.0,86777.0,0.20754]
[1763669080968,0.11216,86779.0,86778.0,0.20973803]
[1763669081167,0.26804,86779.0,86778.0,0.00219803]
[1763669081865,0.15588,86770.0,86769.0,0.20771293]
[1763669082073,0.08281463,86777.0,86776.0,0.20754]
[1763669082270,0.08281463,86777.0,86776.0,0.20973803]
[1763669082473,0.16075463,86777.0,86776.0,0.20973803]
[1763669083064,0.23869463,86777.0,86776.0,0.20973803]
[1763669083464,0.16075463,86777.0,86776.0,0.20973803]
[1763669083865,0.23869463,86777.0,86776.0,0.00219803]
[1763669084176,0.07794,86770.0,86769.0,0.20771293]
[1763669084373,0.15588,86770.0,86769.0,0.20991096]
[1763669084973,0.15588,86770.0,86769.0,0.00237096]
[1763669085372,0.15807803,86770.0,86760.0,0.06515]
[1763669085571,0.15588,86761.0,86736.0,0.0806742]
[1763669085874,0.14987616,86758.0,86749.0,0.20827267]
[1763669086062,0.07794,86758.0,86757.0,0.27269]
[1763669086268,0.00219803,86758.0,86757.0,0.27342267]
[1763669086463,0.00017293,86766.0,86757.0,0.27342267]
[1763669086668,0.00237096,86766.0,86765.0,0.20754]
[1763669086874,0.15825096,86766.0,86765.0,0.20827267]
[1763669087071,0.15825096,86766.0,86765.0,0.10363267]
[1763669087278,0.15588,86758.0,86757.0,0.06515]
[1763669087471,0.15807803,86758.0,86757.0,0.06588267]
[1763669087869,0.15807803,86758.0,86757.0,0.00073267]
[1763669088179,0.15588,86749.0,86736.0,0.06913]
[1763669088477,0.22781616,86746.0,86745.0,0.1029]
[1763669088677,0.15807803,86746.0,86745.0,0.00073267]
[1763669089078,0.15588,86726.0,86724.0,0.06515]
[1763669089273,0.15807803,86726.0,86725.0,0.00087709]
[1763669089477,0.24843859,86726.0,86725.0,0.00087709]
[1763669089674,0.07794,86714.0,86713.0,0.27269]
[1763669089890,0.00219803,86714.0,86713.0,0.27342267]
[1763669090180,0.15807803,86714.0,86702.0,0.06515]
[1763669090378,0.14987616,86712.0,86705.0,0.1029]
[1763669090675,0.00219803,86706.0,86705.0,0.20754]
[1763669091373,0.15807803,86706.0,86705.0,0.20754]
[1763669091582,0.07794,86703.0,86702.0,0.06515]
[1763669091771,0.08013803,86703.0,86702.0,0.06515]
[1763669091971,0.15807803,86703.0,86702.0,0.06515]
[1763669092167,0.15807803,86703.0,86688.0,0.06515]
[1763669092368,0.0115494,86697.0,86688.0,0.06515]
[1763669092574,0.00219803,86689.0,86688.0,0.27269]
[1763669092773,0.08013803,86689.0,86688.0,0.27269]
[1763669093282,0.00219803,86689.0,86688.0,0.27269]
[1763669094078,0.15807803,86689.0,86688.0,0.27269]
[1763669094282,0.00219803,86689.0,86662.0,0.011554]
[1763669094484,0.14987616,86686.0,86685.0,0.20754]
[1763669094785,0.09438339,86686.0,86685.0,0.20754]
[1763669096174,0.00017303,86691.0,86690.0,0.20754]
[1763669096380,0.00237106,86691.0,86690.0,0.20754]
[1763669098287,0.14987616,86700.0,86699.0,0.2190892]
[1763669098487,0.00219803,86700.0,86699.0,0.2190892]
[1763669098684,0.14987616,86709.0,86708.0,0.20754]
[1763669098882,0.09628,86710.0,86709.0,0.20754]
[1763669099083,0.14987616,86718.0,86717.0,0.20754]
[1763669099285,0.01914166,86726.0,86725.0,0.20754]
[1763669099483,0.03288529,86726.0,86725.0,0.20754]
[1763669100090,0.2213968,86717.0,86716.0,0.20754]
[1763669100287,0.2213977,86710.0,86709.0,0.00017303]
[1763669100487,0.00219803,86710.0,86709.0,0.20754]
[1763669100783,0.00219803,86710.0,86700.0,0.06515]
[1763669101083,0.10434,86689.0,86664.0,0.06527294]
[1763669101289,0.14987616,86690.0,86689.0,0.20754]
[1763669101482,0.00219803,86690.0,86689.0,0.20754]
[1763669104288,0.21449803,86690.0,86689.0,0.1029]
[1763669104484,0.00219803,86690.0,86689.0,0.20507]
[1763669104685,0.00017303,86698.0,86697.0,0.20841]
[1763669104901,0.00237106,86698.0,86684.0,0.06515]
[1763669105292,0.21881106,86698.0,86697.0,0.20841]
[1763669105478,0.00237106,86698.0,86697.0,0.20841]
[1763669105678,0.090766,86698.0,86697.0,0.2199594]
[1763669105884,0.00237106,86698.0,86697.0,0.20841]
[1763669106290,0.14987616,86710.0,86709.0,0.20841]
[1763669106586,0.00219803,86710.0,86709.0,0.20841]
[1763669106990,0.21863803,86710.0,86709.0,0.20841]
[1763669107193,0.2279889,86702.0,86701.0,0.10624]
[1763669107390,0.11067803,86702.0,86701.0,0.20841]
[1763669107587,0.00219803,86702.0,86701.0,0.20841]
[1763669107786,0.09314562,86710.0,86701.0,0.20841]
[1763669107982,0.09534365,86710.0,86709.0,0.20841]
[1763669108495,0.09314562,86710.0,86709.0,0.20841]
[1763669108698,0.14987616,86720.0,86719.0,0.20841]
[1763669108995,0.00219803,86720.0,86719.0,0.20841]
[1763669109792,0.00319803,86720.0,86719.0,0.20841]
[1763669110894,0.0015597,86720.0,86719.0,0.20987535]
[1763669111198,0.09293315,86720.0,86719.0,0.20987535]
[1763669111386,0.0015597,86720.0,86719.0,0.20987535]
[1763669111587,0.00073267,86720.0,86719.0,0.20987535]
[1763669112689,0.09085013,86720.0,86719.0,0.20987535]
[1763669112888,0.00073267,86720.0,86719.0,0.20987535]
[1763669114604,0.01857071,86726.0,86725.0,0.20841]
[1763669114789,0.00017303,86728.0,86727.0,0.20841]
[1763669114992,0.0009057,86728.0,86727.0,0.21060803]
[1763669115189,0.01936077,86728.0,86727.0,0.21060803]
[1763669115797,0.02009344,86728.0,86727.0,0.21060803]
[1763669115992,0.0009057,86728.0,86727.0,0.21060803]
[1763669116188,0.27692195,86728.0,86727.0,0.21060803]
[1763669116503,0.39973871,86728.0,86727.0,0.00219803]
[1763669116796,0.33799667,86728.0,86727.0,0.00219803]
[1763669116998,0.0115467,86718.0,86717.0,0.20841]
[1763669117198,0.01227937,86718.0,86717.0,0.21060803]
[1763669117385,0.00073267,86718.0,86717.0,0.21060803]
[1763669119187,0.04206197,86718.0,86717.0,0.21060803]
[1763669119385,0.25850197,86718.0,86717.0,0.21060803]
[1763669119594,0.2279874,86712.0,86681.0,0.03084676]
[1763669119795,0.22872007,86712.0,86711.0,0.20858303]
[1763669119985,0.22872007,86712.0,86711.0,0.21078106]
[1763669120185,0.22872007,86712.0,86711.0,0.00237106]
[1763669120790,0.22872007,86712.0,86711.0,0.21078106]
[1763669120992,0.22872007,86712.0,86711.0,0.00017303]
[1763669121297,0.22872007,86712.0,86691.0,0.0783902]
[1763669121298,0.0115501,86693.0,86691.0,0.06684]
[1763669121496,0.26940332,86693.0,86692.0,0.00219803]
[1763669121689,0.2908426,86693.0,86692.0,0.00219803]
[1763669121890,0.00073267,86693.0,86692.0,0.21060803]
[1763669122093,0.06212805,86697.0,86696.0,0.20841]
[1763669122288,0.09020626,86697.0,86696.0,0.21060803]
[1763669122492,0.011547,86716.0,86696.0,0.21060803]
[1763669122493,0.0912015,86708.0,86700.0,0.06684]
[1763669122694,0.21644,86720.0,86719.0,0.10624]
[1763669122896,0.21644,86720.0,86691.0,0.001]
[1763669122897,0.06596,86700.0,86691.0,0.001]
[1763669123090,0.06596,86700.0,86692.0,0.10843803]
[1763669123091,0.10848,86693.0,86692.0,0.10843803]
[1763669123394,0.31129042,86693.0,86692.0,0.00219803]
[1763669124204,0.21644,86686.0,86685.0,0.10624]
[1763669124394,0.21644,86686.0,86685.0,0.10843803]
[1763669124395,0.21717267,86686.0,86685.0,0.10843803]
[1763669124591,0.21717267,86686.0,86685.0,0.00219803]
[1763669125201,0.00073267,86686.0,86685.0,0.21060803]
[1763669125507,0.09411775,86693.0,86692.0,0.20841]
[1763669125698,0.00017303,86701.0,86700.0,0.27525]
[1763669125996,0.00017303,86701.0,86700.0,0.27744803]
[1763669127693,0.0009057,86701.0,86700.0,0.27744803]
[1763669127892,0.19131208,86719.0,86718.0,0.20841]
[1763669128101,0.31074192,86719.0,86718.0,0.00219803]
[1763669128402,0.32228842,86719.0,86718.0,0.00219803]
[1763669128601,0.32228842,86719.0,86688.0,0.03843]
[1763669128602,0.0115471,86715.0,86688.0,0.03843]
[1763669128801,0.14987616,86710.0,86689.0,0.00073267]
[1763669129002,0.00219803,86709.0,86708.0,0.20841]
[1763669129302,0.00219803,86709.0,86708.0,0.20914267]
[1763669130496,0.21696803,86709.0,86708.0,0.00073267]
[1763669130697,0.00219803,86709.0,86693.0,0.0115498]
[1763669130900,0.00219803,86709.0,86708.0,0.20085]
[1763669131207,0.21488803,86709.0,86708.0,0.00073267]
[1763669131500,0.00219803,86709.0,86708.0,0.20158267]
[1763669132794,0.00017303,86717.0,86716.0,0.21046]
[1763669132995,0.00237106,86717.0,86716.0,0.21119267]
[1763669133800,0.00017303,86717.0,86716.0,0.21119267]
[1763669133990,0.06596,86736.0,86727.0,0.0115455]
[1763669134189,0.02055738,86728.0,86727.0,0.22818817]
[1763669134390,0.02055738,86728.0,86727.0,0.21664267]
[1763669136308,0.00017303,86736.0,86735.0,0.2274544]
[1763669136599,0.10304225,86754.0,86735.0,0.2274544]
[1763669136600,0.10249,86754.0,86753.0,0.10526]
[1763669136804,0.20548803,86754.0,86753.0,0.00073267]
[1763669136997,0.22429789,86754.0,86753.0,0.00073267]
[1763669138104,0.22429789,86754.0,86753.0,0.21664267]
[1763669138105,0.31593393,86754.0,86753.0,0.21664267]
[1763669138697,0.31593393,86754.0,86753.0,0.10599267]
[1763669138899,0.31593393,86754.0,86753.0,0.00073267]
[1763669139296,0.11264393,86754.0,86753.0,0.21664267]
[1763669140602,0.02200789,86754.0,86753.0,0.21664267]
[1763669141603,0.00017293,86762.0,86761.0,0.21591]
[1763669141810,0.00237096,86762.0,86761.0,0.21664267]
[1763669142008,0.00017293,86762.0,86761.0,0.21664267]
[1763669142305,0.009866,86762.0,86761.0,0.21664267]
[1763669142501,0.08283208,86783.0,86769.0,0.10526]
[1763669142704,0.06195441,86776.0,86774.0,0.21591]
[1763669142905,0.20329,86776.0,86775.0,0.00073267]
[1763669143095,0.26744244,86776.0,86775.0,0.00073267]
[1763669143295,0.20548803,86776.0,86775.0,0.00073267]
[1763669143600,0.20548803,86776.0,86775.0,0.10599267]
[1763669143601,0.29820534,86776.0,86775.0,0.10599267]
[1763669143796,0.26557,86768.0,86767.0,0.00017293]
[1763669144099,0.26776803,86768.0,86767.0,0.00017293]
[1763669144302,0.66776803,86768.0,86728.0,0.0115452]
[1763669144504,0.25148223,86756.0,86737.0,0.00073267]
[1763669144804,0.00219803,86738.0,86737.0,0.21664267]
[1763669145200,0.20548803,86738.0,86737.0,0.00073267]
[1763669145604,0.10468803,86738.0,86737.0,0.21664267]
[1763669145910,0.00219803,86738.0,86737.0,0.21664267]
[1763669146500,0.00219803,86738.0,86737.0,0.21764267]
[1763669146709,0.00017293,86746.0,86745.0,0.2274531]
[1763669146906,0.00017293,86746.0,86745.0,0.22818577]
[1763669147203,0.06188768,86773.0,86763.0,0.21591]
[1763669147396,0.06447803,86768.0,86767.0,0.10599267]
[1763669147600,0.16696803,86768.0,86767.0,0.10599267]
[1763669147909,0.36110301,86768.0,86767.0,0.10599267]
[1763669148703,0.36110301,86768.0,86767.0,0.00073267]
[1763669149102,0.29882301,86768.0,86767.0,0.21664267]
[1763669149301,0.26557,86760.0,86759.0,0.00017293]
[1763669149501,0.26776803,86760.0,86759.0,0.0009056]
[1763669150807,0.26776803,86760.0,86728.0,0.0115452]
[1763669151010,0.10249,86738.0,86737.0,0.21664267]
[1763669151207,0.00219803,86738.0,86737.0,0.21664267]
[1763669151707,0.37564991,86760.0,86742.0,0.0115434]
[1763669151912,0.00219803,86754.0,86753.0,0.10526]
[1763669152113,0.00219803,86754.0,86753.0,0.21664267]
[1763669152312,0.10468803,86754.0,86753.0,0.21664267]
[1763669152507,0.20548803,86754.0,86753.0,0.00073267]
[1763669152898,0.20548803,86754.0,86742.0,0.00017293]
[1763669153110,0.20548803,86754.0,86743.0,0.00073267]
[1763669153412,0.00219803,86754.0,86743.0,0.21664267]
[1763669154315,0.20329,86744.0,86743.0,0.21664267]
[1763669154511,0.20548803,86744.0,86743.0,0.21664267]
[1763669155013,0.10468803,86744.0,86743.0,0.21664267]
[1763669155311,0.00219803,86744.0,86743.0,0.21664267]
[1763669155507,0.00219803,86744.0,86743.0,0.21764267]
[1763669155815,0.31393516,86760.0,86755.0,0.21591]
[1763669155816,0.06188768,86757.0,86755.0,0.21591]
[1763669156112,0.06188768,86757.0,86753.0,0.0115419]
[1763669156113,0.00017293,86760.0,86759.0,0.21591]
[1763669156412,0.00237096,86760.0,86759.0,0.21664267]
[1763669157709,0.16679903,86760.0,86759.0,0.21664267]
[1763669157911,0.10486096,86760.0,86759.0,0.21664267]
[1763669158416,0.16679903,86760.0,86759.0,0.21664267]
[1763669158617,0.00237096,86760.0,86759.0,0.22818387]
[1763669158912,0.00237096,86760.0,86759.0,0.21664267]
[1763669159306,0.06430903,86760.0,86759.0,0.21664267]
[1763669159706,0.00237096,86760.0,86759.0,0.21664267]
[1763669160513,0.26794096,86760.0,86759.0,0.00073267]
[1763669161111,0.10249,86743.0,86742.0,0.10543293]
[1763669161312,0.20548803,86743.0,86742.0,0.0009056]
[1763669161516,0.20548803,86743.0,86742.0,0.00017293]
[1763669162216,0.00219803,86743.0,86742.0,0.2168156]
[1763669162615,0.04140688,86752.0,86751.0,0.2135823]
[1763669162812,0.04140688,86758.0,86757.0,0.20204]
[1763669163016,0.00017293,86760.0,86759.0,0.20204]
[1763669163216,0.00237096,86760.0,86759.0,0.20277267]
[1763669163418,0.04379737,86760.0,86759.0,0.20277267]
[1763669163918,0.26532096,86760.0,86759.0,0.00073267]
[1763669164112,0.26532096,86760.0,86759.0,0.20277267]
[1763669164422,0.00237096,86760.0,86759.0,0.20277267]
[1763669164823,0.00017293,86760.0,86759.0,0.20277267]
[1763669165027,0.00237096,86760.0,86759.0,0.20277267]
[1763669165524,0.20538096,86760.0,86759.0,0.20277267]
[1763669165819,0.00237096,86760.0,86759.0,0.20277267]
[1763669166120,2.93e-06,86760.0,86759.0,0.20277267]
[1763669166420,0.04146202,86771.0,86770.0,0.20204]
[1763669166626,0.04146202,86780.0,86779.0,0.2135785]
[1763669166921,0.00219803,86780.0,86779.0,0.21431117]
[1763669167313,0.00219803,86780.0,86779.0,0.20277267]
[1763669167513,0.09829803,86780.0,86779.0,0.20277267]
[1763669167813,0.20520803,86780.0,86779.0,0.00073267]
[1763669168016,0.20520803,86780.0,86771.0,0.00017293]
[1763669168017,0.0961,86772.0,86771.0,0.00017293]
[1763669168213,0.00219803,86772.0,86771.0,0.2029456]
[1763669168618,0.06032015,86783.0,86782.0,0.20204]
[1763669168823,0.06251818,86783.0,86782.0,0.20277267]
[1763669169019,0.01885813,86783.0,86782.0,0.20277267]
[1763669169217,0.00011396,86788.0,86787.0,0.20204]
[1763669169414,0.00011396,86788.0,86787.0,0.20277267]
[1763669169415,0.01960609,86788.0,86787.0,0.20277267]
[1763669169720,0.06193807,86802.0,86796.0,0.0115363]
[1763669169921,0.0435932,86801.0,86800.0,0.20204]
[1763669170115,0.0435932,86801.0,86800.0,0.20277267]
[1763669170310,0.00219803,86801.0,86800.0,0.20277267]
[1763669170710,0.20520803,86801.0,86800.0,0.00073267]
[1763669171526,0.00219803,86801.0,86800.0,0.20277267]
[1763669172019,0.20620803,86801.0,86800.0,0.00073267]
[1763669172220,0.20620803,86801.0,86792.0,0.00017282]
[1763669172221,0.20301,86793.0,86792.0,0.00017282]
[1763669172429,0.20520803,86793.0,86755.0,0.03084676]
[1763669172625,0.25148223,86780.0,86768.0,0.00073267]
[1763669172826,0.00219803,86769.0,86768.0,0.20277267]
[1763669173229,0.00219803,86769.0,86768.0,0.21431267]
[1763669173722,0.09829803,86769.0,86768.0,0.20277267]
[1763669173926,0.0961,86761.0,86760.0,0.00017282]
[1763669174128,0.20520803,86761.0,86760.0,0.00017282]
[1763669174313,0.20520803,86761.0,86760.0,0.00090549]
[1763669174823,0.00219803,86761.0,86760.0,0.20294549]
[1763669175027,0.20520803,86761.0,86760.0,0.00190549]
[1763669175624,0.20520803,86761.0,86736.0,0.06090676]
[1763669175625,0.05994,86760.0,86736.0,0.03006]
[1763669175828,0.00219803,86759.0,86736.0,0.03006]
[1763669176621,0.00017282,86756.0,86743.0,0.0115432]
[1763669176820,0.00219803,86755.0,86743.0,0.0115432]
[1763669177017,0.00219803,86755.0,86739.0,0.00017282]
[1763669177217,0.25148223,86750.0,86739.0,0.00017282]
[1763669177421,0.00219803,86740.0,86739.0,0.20221282]
[1763669178017,0.09829803,86740.0,86739.0,0.20221282]
[1763669178222,0.20520803,86740.0,86739.0,0.00017282]
[1763669178427,0.20520803,86740.0,86739.0,0.21375672]
[1763669178428,0.02167328,86740.0,86739.0,0.21375672]
[1763669178926,0.02167328,86740.0,86739.0,0.20221282]
[1763669179527,0.04133241,86759.0,86755.0,0.2135817]
[1763669179829,0.10127241,86772.0,86755.0,0.2135817]
[1763669180029,0.05994,86772.0,86755.0,0.2135817]
[1763669180228,0.0189969,86756.0,86755.0,0.2135817]
[1763669180429,0.00017282,86756.0,86755.0,0.2135817]
[1763669180633,0.01891838,86756.0,86755.0,0.2135817]
[1763669180829,0.00017282,86756.0,86755.0,0.2135817]
[1763669181031,0.09107781,86773.0,86772.0,0.20204]
[1763669181229,0.00219803,86773.0,86772.0,0.20204]
[1763669181631,0.01869002,86773.0,86772.0,0.22479]
[1763669181825,0.00219803,86773.0,86766.0,0.0115402]
[1763669182020,0.00219803,86773.0,86772.0,0.20204]
[1763669182823,0.05994,86772.0,86761.0,0.00017293]
[1763669183024,0.00219803,86762.0,86761.0,0.20221293]
[1763669183634,0.09829803,86762.0,86761.0,0.20221293]
[1763669184140,0.09829803,86762.0,86761.0,0.20321293]
[1763669184141,0.00219803,86762.0,86761.0,0.20321293]
[1763669184341,0.0608516,86773.0,86772.0,0.20204]
[1763669184533,0.01951919,86773.0,86772.0,0.22479]
[1763669184834,0.04133241,86790.0,86788.0,0.20204]
[1763669185040,0.04133656,86792.0,86791.0,0.20204]
[1763669185239,0.04133656,86792.0,86772.0,0.02275]
[1763669185240,0.22397248,86792.0,86772.0,0.02275]
[1763669185435,0.2928261,86790.0,86760.0,0.03146]
[1763669185738,0.2928261,86790.0,86747.0,0.06169353]
[1763669185739,0.25148223,86780.0,86768.0,0.01154]
[1763669186040,0.00219803,86779.0,86778.0,0.20204]
[1763669186431,0.00219803,86779.0,86778.0,0.0951]
[1763669186432,0.20520803,86779.0,86778.0,0.0951]
[1763669186739,0.20520803,86779.0,86765.0,0.00017283]
[1763669186935,0.0961,86773.0,86772.0,0.001]
[1763669187240,0.09829803,86773.0,86772.0,0.001]
[1763669187444,0.09829803,86773.0,86772.0,0.20204]
[1763669188150,0.20520803,86773.0,86772.0,0.0951]
[1763669189246,0.01199385,86773.0,86772.0,0.09729803]
[1763669189450,0.00073267,86773.0,86772.0,0.20423803]
[1763669189647,0.00073267,86773.0,86772.0,0.26154803]
[1763669189850,0.04134387,86779.0,86778.0,0.20204]
[1763669190050,0.04134387,86780.0,86779.0,0.20423803]
[1763669190352,0.04134649,86781.0,86780.0,0.2135784]
[1763669190550,0.04134649,86781.0,86780.0,0.21577643]
[1763669190746,0.04134649,86785.0,86783.0,0.011538]
[1763669190943,0.06193807,86790.0,86784.0,0.18905803]
[1763669191144,0.00073267,86785.0,86784.0,0.18905803]
[1763669191345,0.00073267,86785.0,86784.0,0.24916803]
[1763669191853,0.06193807,86790.0,86788.0,0.1983973]
[1763669192151,0.06193807,86790.0,86784.0,0.06230803]
[1763669192152,0.06193807,86799.0,86797.0,0.1983961]
[1763669192350,0.00073267,86799.0,86798.0,0.19714803]
[1763669192542,0.06203083,86799.0,86798.0,0.19714803]
[1763669192741,0.06203083,86805.0,86804.0,0.19882]
[1763669192950,0.0627635,86805.0,86804.0,0.20101803]
[1763669193146,0.00073267,86805.0,86804.0,0.20101803]
[1763669193856,0.18424267,86805.0,86804.0,0.00219803]
[1763669194457,0.18724267,86805.0,86804.0,0.00219803]
[1763669194657,0.09392267,86805.0,86804.0,0.20101803]